bitfinex-derivatives/quotes_BTCF0:USTF0_20251023
["timestamp","ask_amount","ask_price","bid_price","bid_amount"]
[1761236576546,0.64277397,110040.0,110030.0,0.36751]
[1761236576754,0.6428013,110040.0,110030.0,0.36751]
[1761236577250,0.3227613,110040.0,110030.0,0.36751]
[1761236577456,0.47921844,110040.0,110030.0,0.4583742]
[1761236577952,0.47921844,110040.0,110030.0,0.4593742]
[1761236578152,0.6428013,110040.0,110030.0,0.4593742]
[1761236578353,0.61829876,110040.0,110030.0,0.4593742]
[1761236578553,0.61829876,110040.0,110030.0,0.4603742]
[1761236582156,0.63187876,110040.0,110030.0,0.4603742]
[1761236583457,0.4682959,110040.0,110030.0,0.4603742]
[1761236583647,0.63187876,110040.0,110030.0,0.4603742]
[1761236584151,0.63187876,110040.0,110030.0,0.4472042]
[1761236585354,0.6563813,110040.0,110030.0,0.4472042]
[1761236590362,0.85263702,110040.0,110030.0,0.447204]
[1761236590564,0.85263702,110040.0,110030.0,0.425374]
[1761236591065,0.85263702,110040.0,110030.0,0.447204]
[1761236591562,0.85263702,110040.0,110030.0,0.402864]
[1761236591763,0.85263702,110040.0,110030.0,0.312]
[1761236592157,0.68901416,110040.0,110030.0,0.447204]
[1761236592356,0.6563413,110040.0,110030.0,0.447204]
[1761236592557,0.6563413,110040.0,110030.0,0.35634]
[1761236592756,0.6563413,110040.0,110030.0,0.33451]
[1761236592757,0.68901416,110040.0,110030.0,0.33451]
[1761236593166,0.68901416,110040.0,110030.0,0.447204]
[1761236593368,0.68901416,110040.0,110030.0,0.460374]
[1761236593558,0.6563413,110040.0,110030.0,0.460374]
[1761236593967,0.3363413,110040.0,110030.0,0.460374]
[1761236594171,0.6563413,110040.0,110030.0,0.460374]
[1761236594572,0.3363413,110040.0,110030.0,0.460374]
[1761236594872,0.06832254,110040.0,110030.0,0.62395686]
[1761236595164,0.4642331,110050.0,110040.0,0.1483656]
[1761236595359,0.4865631,110050.0,110040.0,0.4383656]
[1761236596962,0.65014596,110050.0,110040.0,0.4383656]
[1761236598060,0.66372596,110050.0,110040.0,0.4251956]
[1761236598665,0.66372596,110050.0,110040.0,0.33434]
[1761236598869,0.80280628,110050.0,110040.0,0.29]
[1761236599064,1.2191292,110050.0,110040.0,0.29]
[1761236602058,0.1259341,110030.0,110020.0,0.05965816]
[1761236602365,0.65632744,110030.0,110020.0,0.35888442]
[1761236603268,0.66450094,110030.0,110020.0,0.36188442]
[1761236603870,0.66450094,110030.0,110020.0,0.36788442]
[1761236604379,0.68901229,110030.0,110020.0,0.36788442]
[1761236604775,0.66450094,110030.0,110020.0,0.32354442]
[1761236605176,1.06450094,110030.0,110020.0,0.32354442]
[1761236606876,1.27707958,110030.0,110020.0,0.02701134]
[1761236607178,1.2443856,110030.0,110020.0,0.02701134]
[1761236607980,1.08971833,110030.0,110020.0,0.02701134]
[1761236608181,1.25330119,110030.0,110020.0,0.01354442]
[1761236608573,0.149289,110000.0,109990.0,0.17665394]
[1761236608772,0.63287186,110000.0,109990.0,0.51665394]
[1761236609082,0.63287186,110000.0,109990.0,0.4840502]
[1761236609777,0.469289,110000.0,109990.0,0.4970902]
[1761236610083,0.63287186,110000.0,109990.0,0.5020902]
[1761236610877,0.63387186,110000.0,109990.0,0.5120902]
[1761236613978,0.36541,110000.0,109990.0,0.5120902]
[1761236614184,0.411889,110000.0,109990.0,0.67567306]
[1761236614487,0.434939,110000.0,109990.0,0.5120902]
[1761236614685,0.456299,110000.0,109990.0,0.5120902]
[1761236615179,0.4562988,110000.0,109990.0,0.5120902]
[1761236616185,0.63387166,110000.0,109990.0,0.5120902]
[1761236616484,0.4702888,110000.0,109990.0,0.5120902]
[1761236616785,0.4562988,110000.0,109990.0,0.5120902]
[1761236617279,0.4702888,110000.0,109990.0,0.4990502]
[1761236617494,0.63387166,110000.0,109990.0,0.5120902]
[1761236618885,0.63387166,110000.0,109990.0,0.4990502]
[1761236620277,0.63387166,110000.0,109990.0,0.5120902]
[1761236620472,0.52899286,110000.0,109990.0,0.5120902]
[1761236620677,0.36541,110000.0,109990.0,0.5120902]
[1761236621280,0.36541,110000.0,109990.0,0.67567306]
[1761236621490,0.34405,110000.0,109990.0,0.67567306]
[1761236621884,0.001,110000.0,109990.0,0.67567306]
[1761236622088,0.02405,110000.0,109990.0,0.5120902]
[1761236622286,0.04541,110000.0,109990.0,0.5120902]
[1761236622679,0.001,110000.0,109990.0,0.67567306]
[1761236623081,0.001,110000.0,109990.0,0.5120902]
[1761236623990,0.001,110000.0,109990.0,0.67567306]
[1761236624994,0.001,110000.0,109990.0,0.5120902]
[1761236625194,0.1362988,110000.0,109990.0,0.5120902]
[1761236626692,0.04541,110000.0,109990.0,0.5120902]
[1761236627094,0.02405,110000.0,109990.0,0.5120902]
[1761236627497,0.02405,110000.0,109990.0,0.54469394]
[1761236627796,0.04541,110000.0,109990.0,0.54469394]
[1761236628588,0.1362986,110000.0,109990.0,0.54469394]
[1761236629295,0.31387146,110000.0,109990.0,0.5120902]
[1761236629999,0.31387146,110000.0,109990.0,0.4990502]
[1761236630896,0.31387146,110000.0,109990.0,0.5120902]
[1761236631396,0.31387146,110000.0,109990.0,0.54469394]
[1761236633098,0.1362986,110000.0,109990.0,0.54469394]
[1761236633798,0.29988146,110000.0,109990.0,0.54469394]
[1761236634900,0.20899286,110000.0,109990.0,0.54469394]
[1761236635103,0.30086156,110000.0,109990.0,0.59356807]
[1761236635501,0.1372787,110000.0,109990.0,0.59356807]
[1761236638707,0.30097191,110000.0,109990.0,0.59356807]
[1761236639208,0.31390191,110000.0,109990.0,0.58052807]
[1761236639607,0.47759512,110000.0,109990.0,0.58052807]
[1761236639806,0.47759512,110000.0,109990.0,0.53165394]
[1761236640904,0.46466512,110000.0,109990.0,0.54493394]
[1761236641104,0.30097191,110000.0,109990.0,0.75750128]
[1761236641609,0.21008321,110000.0,109990.0,0.75750128]
[1761236641903,0.30097171,110000.0,109990.0,0.75750128]
[1761236643609,0.30097181,110000.0,109990.0,0.75750128]
[1761236643911,0.21008321,110000.0,109990.0,0.75750128]
[1761236644300,0.001,110000.0,109990.0,0.96120433]
[1761236644499,0.001,110000.0,109990.0,1.12489754]
[1761236644704,0.16469321,110000.0,109990.0,1.12489754]
[1761236645114,0.001,110000.0,109990.0,1.12489754]
[1761236645614,0.001,110000.0,109990.0,1.44489754]
[1761236645812,0.001,110000.0,109990.0,1.60859075]
[1761236646005,0.001,110000.0,109990.0,1.44489754]
[1761236646204,0.001,110000.0,109990.0,1.55971662]
[1761236646400,0.65389686,110020.0,110010.0,0.05779]
[1761236646607,0.67623686,110020.0,110010.0,0.4586703]
[1761236647721,0.67623686,110020.0,110010.0,0.4636703]
[1761236648013,0.67723686,110020.0,110010.0,0.4736703]
[1761236648916,0.51354365,110020.0,110010.0,0.4736703]
[1761236649114,0.05814135,110020.0,110010.0,0.63736351]
[1761236649301,0.02548915,110020.0,110010.0,0.63736351]
[1761236649507,0.23371236,110020.0,110010.0,0.63736351]
[1761236649910,0.20922321,110020.0,110010.0,0.67005225]
[1761236650216,0.30009511,110020.0,110010.0,0.67005225]
[1761236650415,0.30009511,110020.0,110010.0,0.50635904]
[1761236651216,0.47671832,110020.0,110010.0,0.4736703]
[1761236651420,0.31302511,110020.0,110010.0,0.4736703]
[1761236651915,0.47671832,110020.0,110010.0,0.4736703]
[1761236652118,0.31302511,110020.0,110010.0,0.4736703]
[1761236652919,0.47671832,110020.0,110010.0,0.4736703]
[1761236656213,0.1493319,110020.0,110010.0,0.4736703]
[1761236656415,0.47671832,110020.0,110010.0,0.4736703]
[1761236659524,0.47671832,110020.0,110010.0,0.4603903]
[1761236659726,0.50120747,110020.0,110010.0,0.36951]
[1761236660727,0.50120747,110020.0,110010.0,0.4603902]
[1761236661120,0.50120747,110020.0,110010.0,0.36951]
[1761236662222,0.50120747,110020.0,110010.0,0.4603902]
[1761236666630,0.50120747,110020.0,110010.0,0.4736802]
[1761236668121,0.50120747,110020.0,110010.0,0.4603903]
[1761236669121,0.50120747,110020.0,110010.0,0.4736803]
[1761236672627,0.50120747,110020.0,110010.0,0.3828]
[1761236672821,0.1503902,110010.0,110000.0,0.03168874]
[1761236673126,0.1503902,110010.0,109990.0,0.04903311]
[1761236673127,0.1503984,110000.0,109990.0,0.03030889]
[1761236673324,0.47778482,110000.0,109990.0,0.36529889]
[1761236673734,0.47778482,110000.0,109990.0,0.41529889]
[1761236673933,0.47778482,110000.0,109990.0,0.17529889]
[1761236674128,0.51043702,110000.0,109990.0,0.2358868]
[1761236674436,0.51043702,110000.0,109990.0,0.1358868]
[1761236674624,0.51043702,110000.0,109990.0,0.4758868]
[1761236674823,0.53494897,110000.0,109990.0,0.4808868]
[1761236675024,0.53494897,110000.0,109990.0,0.4941768]
[1761236675733,0.53594897,110000.0,109990.0,0.39799]
[1761236676334,0.51143702,110000.0,109990.0,0.39799]
[1761236676631,0.53593012,110000.0,109990.0,0.39799]
[1761236677545,0.53593012,110000.0,109990.0,0.293]
[1761236677937,0.53593012,110000.0,109990.0,0.33799]
[1761236678338,0.53593012,110000.0,109990.0,0.4288868]
[1761236679128,0.50327792,110000.0,109990.0,0.4288868]
[1761236680339,0.50327792,110000.0,109990.0,0.4421768]
[1761236682438,0.24869631,110000.0,109990.0,0.60587001]
[1761236682633,0.001,110000.0,109990.0,0.60587001]
[1761236683032,0.001,110000.0,109990.0,1.00587001]
[1761236683233,0.001,110000.0,109990.0,1.16956322]
[1761236683931,0.001,110000.0,109990.0,1.00587001]
[1761236684135,0.001,110000.0,109990.0,1.16956322]
[1761236684336,0.001,110000.0,109990.0,1.24318409]
[1761236684732,0.001,110000.0,109990.0,1.07949088]
[1761236685136,0.001,110000.0,109990.0,1.12852399]
[1761236686942,0.02339,110000.0,109990.0,1.12852399]
[1761236687243,0.21037321,110000.0,109990.0,0.7621368]
[1761236687633,0.21037321,110000.0,109990.0,0.4421768]
[1761236687941,0.16469321,110000.0,109990.0,0.92583001]
[1761236688132,0.18708321,110000.0,109990.0,0.92583001]
[1761236688638,0.21037321,110000.0,109990.0,0.7621368]
[1761236688834,0.21037321,110000.0,109990.0,0.4421768]
[1761236689036,0.04668,110000.0,109990.0,0.7621368]
[1761236689236,0.37406642,110000.0,109990.0,0.4421768]
[1761236689543,0.37406642,110000.0,109990.0,0.7621368]
[1761236689741,0.21037321,110000.0,109990.0,0.92583001]
[1761236690844,0.001,110000.0,109990.0,0.92583001]
[1761236691735,0.21037321,110000.0,109990.0,0.92583001]
[1761236692135,0.21037321,110000.0,109990.0,0.7621368]
[1761236692136,0.47878492,110000.0,109990.0,0.7621368]
[1761236692331,0.47878492,110000.0,109990.0,0.4421768]
[1761236692532,0.47878492,110000.0,109990.0,0.65795]
[1761236692843,0.47878492,110000.0,109990.0,0.4288865]
[1761236693639,0.47878492,110000.0,109990.0,0.4427365]
[1761236694139,0.46495492,110000.0,109990.0,0.4427365]
[1761236694338,0.47798492,110000.0,109990.0,0.33799]
[1761236694645,0.47798492,110000.0,109990.0,0.4288865]
[1761236694831,0.47798492,110000.0,109990.0,0.33799]
[1761236695136,0.47798492,110000.0,109990.0,0.4288865]
[1761236695341,0.47798492,110000.0,109990.0,0.4488865]
[1761236695845,0.47798492,110000.0,109990.0,0.4588865]
[1761236696143,0.47798492,110000.0,109990.0,0.1488865]
[1761236696337,0.47798492,110000.0,109990.0,0.38799]
[1761236697344,0.47798492,110000.0,109990.0,0.4388867]
[1761236697641,0.47798492,110000.0,109990.0,0.4527367]
[1761236697944,0.47798492,110000.0,109990.0,0.4427367]
[1761236698136,0.47798492,110000.0,109990.0,0.4288867]
[1761236698738,0.31433947,110000.0,109990.0,0.33799]
[1761236699040,0.6587683,110000.0,109990.0,0.3149]
[1761236699452,0.6587683,110000.0,109990.0,0.3549]
[1761236700345,0.6587683,110000.0,109990.0,0.013]
[1761236700643,1.0914205,110000.0,109990.0,0.013]
[1761236701038,0.92767953,110000.0,109990.0,0.053]
[1761236701234,1.0914205,110000.0,109990.0,0.013]
[1761236701438,1.0914205,110000.0,109990.0,0.063]
[1761236702150,1.06695167,110000.0,109990.0,0.013]
[1761236702743,1.06695167,110000.0,109990.0,0.063]
[1761236703250,1.10060049,110000.0,109990.0,0.063]
[1761236703948,1.07611861,110000.0,109990.0,0.063]
[1761236705241,1.09143207,110000.0,109990.0,0.063]
[1761236705442,1.09143207,110000.0,109990.0,0.1061]
[1761236706441,1.09143207,110000.0,109990.0,0.08499]
[1761236706640,1.09143207,110000.0,109990.0,0.063]
[1761236709141,1.25517304,110000.0,109990.0,0.013]
[1761236709447,0.0908969,109990.0,109980.0,0.00454607]
[1761236709651,0.50906104,109990.0,109980.0,0.00454607]
[1761236709851,0.90906104,109990.0,109980.0,0.00454607]
[1761236710150,0.50906104,109990.0,109980.0,0.00454607]
[1761236710752,0.50906104,109990.0,109980.0,0.00954607]
[1761236711046,0.51006104,109990.0,109980.0,0.00954607]
[1761236713256,0.53451014,109990.0,109980.0,0.00954607]
[1761236714259,0.53451014,109990.0,109980.0,0.05264607]
[1761236714260,0.2070282,109990.0,109980.0,0.05264607]
[1761236714556,0.32508697,109990.0,109980.0,0.48740127]
[1761236714760,0.33811697,109990.0,109980.0,0.38264607]
[1761236715146,0.33811697,109990.0,109980.0,0.47355117]
[1761236716647,0.30319697,109990.0,109980.0,0.48740117]
[1761236716844,0.21230007,109990.0,109980.0,0.48740117]
[1761236717055,0.23419007,109990.0,109980.0,0.48740117]
[1761236717259,0.20974097,109990.0,109980.0,0.48740117]
[1761236717555,0.32508687,109990.0,109980.0,0.48740117]
[1761236718457,0.33811687,109990.0,109980.0,0.37264607]
[1761236718648,0.33811687,109990.0,109980.0,0.46355117]
[1761236720048,0.33811687,109990.0,109980.0,0.47740117]
[1761236720449,0.24722007,109990.0,109980.0,0.47740117]
[1761236720751,0.33811697,109990.0,109980.0,0.47740117]
[1761236722055,0.37076917,109990.0,109980.0,0.47740117]
[1761236722657,0.37076917,109990.0,109980.0,0.46355117]
[1761236722859,0.30063787,109990.0,109980.0,0.47678117]
[1761236723659,0.30063787,109990.0,109980.0,0.5012636]
[1761236724360,0.20974097,109990.0,109980.0,0.5012636]
[1761236724558,0.136897,109990.0,109980.0,0.5012636]
[1761236725261,0.30063797,109990.0,109980.0,0.47678117]
[1761236725561,0.046,109990.0,109980.0,0.47678117]
[1761236725762,0.1368969,109990.0,109980.0,0.5012729]
[1761236726060,0.046,109990.0,109980.0,0.47678117]
[1761236726656,0.046,109990.0,109980.0,0.50940061]
[1761236726862,0.001,109990.0,109980.0,0.50127723]
[1761236727355,0.02292,109990.0,109980.0,0.50127723]
[1761236727549,0.02292,109990.0,109980.0,0.53389667]
[1761236727949,0.001,109990.0,109980.0,0.93389667]
[1761236728157,0.17253338,110010.0,110000.0,0.1492387]
[1761236728158,0.1910167,110010.0,110000.0,0.1492387]
[1761236728461,0.0674791,110010.0,110000.0,0.4692387]
[1761236728654,0.0244491,110010.0,110000.0,0.4692387]
[1761236728850,0.33478017,110010.0,110000.0,0.04451]
[1761236729050,0.53117334,110010.0,110000.0,0.2353984]
[1761236729261,0.2036914,110010.0,110000.0,0.38451]
[1761236729456,0.53117334,110010.0,110000.0,0.4483984]
[1761236729656,0.53217334,110010.0,110000.0,0.113]
[1761236730057,0.53217334,110010.0,110000.0,0.2271587]
[1761236730266,0.49952114,110010.0,110000.0,0.2483987]
[1761236730562,0.49952114,110010.0,110000.0,0.15751]
[1761236730763,0.49952114,110010.0,110000.0,0.113]
[1761236730957,0.49952114,110010.0,110000.0,0.003]
[1761236731163,0.49952114,110010.0,110000.0,0.1783987]
[1761236731461,0.33578047,110010.0,110000.0,0.4922387]
[1761236732559,0.33578047,110010.0,110000.0,0.50150134]
[1761236732761,0.33578047,110010.0,110000.0,0.4922387]
[1761236732962,0.001,110010.0,110000.0,0.50115963]
[1761236733466,0.001,110010.0,110000.0,0.52564519]
[1761236734165,0.04403,110010.0,110000.0,0.50115963]
[1761236734663,0.04403,110010.0,110000.0,0.52564519]
[1761236734966,0.05671,110010.0,110000.0,0.50115963]
[1761236735864,0.04403,110010.0,110000.0,0.50115963]
[1761236736367,0.1349104,110010.0,110000.0,0.50115963]
[1761236736567,0.04403,110010.0,110000.0,0.50115963]
[1761236737069,0.1349104,110010.0,110000.0,0.50115963]
[1761236737670,0.49053845,110010.0,110000.0,0.38751]
[1761236738265,0.49053845,110010.0,110000.0,0.4783987]
[1761236738969,0.1475904,110010.0,110000.0,0.4922387]
[1761236739263,0.1349104,110010.0,110000.0,0.4922387]
[1761236739969,0.04403,110010.0,110000.0,0.4922387]
[1761236740168,0.1349104,110010.0,110000.0,0.4922387]
[1761236740871,0.1349104,110010.0,110000.0,0.50148353]
[1761236740872,0.04403,110010.0,110000.0,0.50148353]
[1761236741169,0.001,110010.0,110000.0,0.50148353]
[1761236741371,0.0918804,110010.0,110000.0,0.50148353]
[1761236741566,0.1138004,110010.0,110000.0,0.50148353]
[1761236742570,0.02292,110010.0,110000.0,0.50148353]
[1761236743165,0.1138004,110010.0,110000.0,0.50148353]
[1761236743771,0.1349104,110010.0,110000.0,0.50148353]
[1761236745774,0.001,110010.0,110000.0,0.50148353]
[1761236746472,0.0918804,110010.0,110000.0,0.50148353]
[1761236746668,0.001,110010.0,110000.0,0.50148353]
[1761236746876,0.001,110010.0,110000.0,0.90148353]
[1761236747172,0.001,110010.0,110000.0,1.22140353]
[1761236750275,0.001,110010.0,110000.0,1.24588909]
[1761236753968,0.001,110010.0,110000.0,1.27850853]
[1761236754677,0.001,110010.0,110000.0,1.44215897]
[1761236755180,0.001,110010.0,110000.0,1.41767341]
[1761236755780,0.001,110010.0,110000.0,1.25402297]
[1761236755982,0.001,110010.0,110000.0,1.41767341]
[1761236756583,0.001,110010.0,110000.0,1.46670652]
[1761236757282,0.36469,110020.0,110010.0,0.1464904]
[1761236757485,0.64366174,110020.0,110010.0,0.48098675]
[1761236757777,0.3664991,110020.0,110010.0,0.48098675]
[1761236758280,0.3674991,110020.0,110010.0,0.48098675]
[1761236758675,0.3674991,110020.0,110010.0,0.48398675]
[1761236758983,0.3901391,110020.0,110010.0,0.48398675]
[1761236759581,0.64466174,110020.0,110010.0,0.48398675]
[1761236760682,0.6574667,110020.0,110010.0,0.48398675]
[1761236760881,0.8211221,110020.0,110010.0,0.47132675]
[1761236761081,0.8537743,110020.0,110010.0,0.04595]
[1761236761277,0.8537743,110020.0,110010.0,0.09595]
[1761236761476,1.2293252,110020.0,110010.0,0.053]
[1761236761676,1.27832098,110020.0,110010.0,0.003]
[1761236761878,1.3929806,110020.0,110010.0,0.003]
[1761236762085,1.44197638,110020.0,110010.0,0.003]
[1761236763189,1.44197638,110020.0,110010.0,0.053]
[1761236763686,1.27832098,110020.0,110010.0,0.053]
[1761236764682,1.40932418,110020.0,110010.0,0.003]
[1761236769691,1.00932418,110020.0,110010.0,0.001]
[1761236769892,0.1484187,110000.0,109990.0,0.04571635]
[1761236770081,0.98378389,110000.0,109990.0,0.02449635]
[1761236770283,0.98378389,110000.0,109980.0,0.06170417]
[1761236770284,0.1484269,109990.0,109980.0,0.06170417]
[1761236770484,0.1484269,109990.0,109970.0,0.04903311]
[1761236770485,0.1484434,109970.0,109960.0,0.08182819]
[1761236770788,0.1258115,109960.0,109950.0,0.04903311]
[1761236771088,0.4757623,109960.0,109950.0,0.20198311]
[1761236771389,0.4757623,109960.0,109950.0,0.15295]
[1761236771585,0.0909297,109950.0,109940.0,0.19669216]
[1761236771796,0.6319951,109950.0,109940.0,0.47669216]
[1761236772483,0.6319951,109950.0,109940.0,0.48935216]
[1761236772685,0.6319951,109950.0,109940.0,0.38575456]
[1761236773093,0.7956505,109950.0,109940.0,0.37653084]
[1761236773395,0.7956505,109950.0,109940.0,0.47643608]
[1761236773593,0.6319951,109950.0,109940.0,0.44006297]
[1761236773892,0.6329951,109950.0,109940.0,0.45367799]
[1761236774092,0.6329951,109950.0,109940.0,0.36273969]
[1761236774499,0.6329951,109950.0,109940.0,0.45367799]
[1761236775104,0.5420654,109950.0,109940.0,0.45367799]
[1761236775294,0.36561,109950.0,109940.0,0.61733339]
[1761236775594,0.5292654,109950.0,109940.0,0.61733339]
[1761236776189,0.5292654,109950.0,109940.0,0.45367799]
[1761236776388,0.5292654,109950.0,109940.0,0.61733339]
[1761236776684,0.36561,109950.0,109940.0,0.45367799]
[1761236776884,0.32088,109950.0,109940.0,0.45367799]
[1761236778392,0.001,109950.0,109940.0,0.45367799]
[1761236778887,0.001,109950.0,109940.0,1.05849104]
[1761236779291,0.04573,109950.0,109940.0,0.85367799]
[1761236781298,0.02309,109950.0,109940.0,0.85367799]
[1761236781895,0.02309,109950.0,109940.0,0.84006297]
[1761236782393,0.001,109950.0,109940.0,0.84006297]
[1761236782606,0.02309,109950.0,109940.0,0.84006297]
[1761236782796,0.04573,109950.0,109940.0,0.84006297]
[1761236784703,0.02309,109950.0,109940.0,0.84006297]
[1761236785103,0.001,109950.0,109940.0,0.84006297]
[1761236786304,0.001,109950.0,109940.0,1.04487602]
[1761236789008,0.001,109950.0,109940.0,1.36487602]
[1761236790307,0.04342,109950.0,109940.0,1.36487602]
[1761236790509,0.001,109950.0,109940.0,1.36487602]
[1761236790706,0.02233,109950.0,109940.0,1.36487602]
[1761236790902,0.001,109950.0,109940.0,1.36487602]
[1761236791110,0.001,109950.0,109940.0,1.16006297]
[1761236791306,0.02233,109950.0,109940.0,1.16006297]
[1761236791513,0.001,109950.0,109940.0,1.16006297]
[1761236792413,0.001,109950.0,109940.0,1.36487602]
[1761236794906,0.04242,109980.0,109970.0,0.147353]
[1761236795106,0.06693899,109990.0,109980.0,0.1473447]
[1761236795309,0.20443917,110000.0,109990.0,0.05644]
[1761236795512,0.20443917,110000.0,109990.0,0.4246065]
[1761236796219,0.20443917,110000.0,109990.0,0.43366863]
[1761236796413,0.08903198,110000.0,109990.0,0.43366863]
[1761236796715,0.17992018,110000.0,109990.0,0.44639863]
[1761236797016,0.08903198,110000.0,109990.0,0.44639863]
[1761236797516,0.05634,110000.0,109990.0,0.44639863]
[1761236798014,0.1472282,110000.0,109990.0,0.44639863]
[1761236798216,0.1482282,110000.0,109990.0,0.44739863]
[1761236798616,0.04342,110000.0,109990.0,0.44739863]
[1761236798916,0.20712742,110000.0,109990.0,0.61110605]
[1761236799309,0.001,110000.0,109990.0,0.61110605]
[1761236799908,0.02233,110000.0,109990.0,0.61110605]
[1761236800715,0.001,110000.0,109990.0,0.61110605]
[1761236801322,0.20712742,110000.0,109990.0,0.61110605]
[1761236803313,0.04342,110000.0,109990.0,0.61110605]
[1761236803522,0.20712742,110000.0,109990.0,0.61110605]
[1761236804323,0.04342,110000.0,109990.0,0.61110605]
[1761236804921,0.001,110000.0,109990.0,0.61110605]
[1761236806514,0.02233,110000.0,109990.0,0.61110605]
[1761236806716,0.001,110000.0,109990.0,0.61110605]
[1761236808818,0.02233,110000.0,109990.0,0.61110605]
[1761236809125,0.04342,110000.0,109990.0,0.61110605]
[1761236809422,0.02233,110000.0,109990.0,0.61110605]
[1761236810324,0.001,110000.0,109990.0,0.61110605]
[1761236814127,0.02233,110000.0,109990.0,0.61110605]
[1761236814326,0.001,110000.0,109990.0,0.61110605]
[1761236817333,0.02251,110000.0,109990.0,0.61110605]
[1761236817834,0.001,110000.0,109990.0,0.61110605]
[1761236820529,0.001,110000.0,109990.0,0.77481347]
[1761236820734,0.001,110000.0,109990.0,0.61110605]
[1761236821342,0.02251,110000.0,109990.0,0.61110605]
[1761236822444,0.001,110000.0,109990.0,0.64371776]
[1761236822742,0.001,110000.0,109990.0,0.64368103]
[1761236824747,0.38836382,110020.0,110010.0,0.1462397]
[1761236824946,0.38836382,110020.0,110010.0,0.58991039]
[1761236825149,0.02442382,110020.0,110010.0,0.75358108]
[1761236825346,0.0619158,110030.0,110020.0,0.1462313]
[1761236825641,0.0619158,110030.0,110020.0,0.58990199]
[1761236825943,0.0619158,110030.0,110020.0,0.90978199]
[1761236825944,0.02922382,110030.0,110020.0,0.90978199]
[1761236826536,0.02922382,110030.0,110020.0,0.7461113]
[1761236826733,0.02922382,110030.0,110020.0,0.91078199]
[1761236826938,0.0048,110030.0,110020.0,0.9433937]
[1761236827444,0.0048,110030.0,110020.0,1.01533]
[1761236828549,0.47913092,110050.0,110040.0,0.1462149]
[1761236828751,0.47913092,110050.0,110040.0,0.60988559]
[1761236829047,0.47913092,110050.0,110040.0,0.4462149]
[1761236829849,0.48513092,110050.0,110040.0,0.4462149]
[1761236830148,0.48013092,110050.0,110040.0,0.4462149]
[1761236831546,0.4686571,110050.0,110040.0,0.4462149]
[1761236831749,0.4676571,110050.0,110040.0,0.4462149]
[1761236831953,0.4676571,110050.0,110040.0,0.45734246]
[1761236832350,0.47913092,110050.0,110040.0,0.45734246]
[1761236832544,0.49208092,110050.0,110040.0,0.45734246]
[1761236833754,0.4676571,110050.0,110040.0,0.45734246]
[1761236834053,0.49208092,110050.0,110040.0,0.45734246]
[1761236834955,0.49210905,110050.0,110040.0,0.45734246]
[1761236835955,0.65577974,110050.0,110040.0,0.31334]
[1761236836151,0.65577974,110050.0,110040.0,0.06334]
[1761236836554,0.68847172,110050.0,110040.0,0.06334]
[1761236836760,0.65577974,110050.0,110040.0,0.06334]
[1761236837349,0.65577974,110050.0,110040.0,0.07334]
[1761236837857,1.05577974,110050.0,110040.0,0.02134]
[1761236838058,1.22769046,110050.0,110040.0,0.042]
[1761236838256,1.22769046,110050.0,110040.0,0.052]
[1761236838460,1.08847194,110050.0,110040.0,0.052]
[1761236838651,1.08847194,110050.0,110040.0,0.05]
[1761236838853,0.1477849,110040.0,110030.0,0.04254]
[1761236839052,0.33590798,110040.0,110030.0,0.35254]
[1761236839351,0.33590798,110040.0,110030.0,0.37254]
[1761236839548,0.33590798,110040.0,110030.0,0.32254]
[1761236839761,0.33590798,110040.0,110030.0,0.38254]
[1761236839959,0.33590798,110040.0,110030.0,0.37254]
[1761236840161,0.33590798,110040.0,110030.0,0.34254]
[1761236840459,0.33590798,110040.0,110030.0,0.04254]
[1761236840655,0.33590798,110040.0,110030.0,0.32254]
[1761236840959,0.33590798,110040.0,110030.0,0.32454]
[1761236841860,0.33590798,110040.0,110030.0,0.33454]
[1761236842261,0.33590798,110040.0,110030.0,0.002]
[1761236842465,0.93227065,110040.0,110030.0,0.002]
[1761236842658,0.93227065,110040.0,110030.0,0.052]
[1761236842852,0.76859996,110040.0,110030.0,0.052]
[1761236843057,0.93227065,110040.0,110030.0,0.002]
[1761236843865,0.93227065,110040.0,110030.0,0.052]
[1761236844064,0.93227065,110040.0,110030.0,0.042]
[1761236844263,0.94138592,110040.0,110030.0,0.002]
[1761236844566,0.96592931,110040.0,110030.0,0.002]
[1761236846465,0.91693353,110040.0,110030.0,0.002]
[1761236846661,0.96592931,110040.0,110030.0,0.002]
[1761236846972,0.93323733,110040.0,110030.0,0.002]
[1761236850469,0.93323733,110040.0,110030.0,0.00165766]
[1761236853367,0.15026,110010.0,110000.0,0.14602495]
[1761236853575,0.15026,110010.0,110000.0,0.04615]
[1761236853576,0.79744138,110010.0,110000.0,0.04615]
[1761236853762,0.1502682,110000.0,109990.0,0.16148151]
[1761236853959,0.31393889,110000.0,109990.0,0.50148151]
[1761236854168,0.31393889,110000.0,109990.0,0.18059081]
[1761236854363,0.31393889,110000.0,109990.0,0.16059081]
[1761236854574,0.31393889,110000.0,109990.0,0.49040209]
[1761236854774,0.1365482,110000.0,109990.0,0.52308209]
[1761236855968,0.30121889,110000.0,109990.0,0.52308209]
[1761236856268,0.30121889,110000.0,109990.0,0.52408209]
[1761236856975,0.31493889,110000.0,109990.0,0.42050559]
[1761236857477,0.1512682,110000.0,109990.0,0.52408209]
[1761236858668,0.1512682,110000.0,109990.0,0.43318559]
[1761236858878,0.1512682,110000.0,109990.0,0.42050559]
[1761236859179,0.1502765,109990.0,109980.0,0.02900712]
[1761236859379,0.150293,109970.0,109960.0,0.0788719]
[1761236859673,0.63428369,109970.0,109960.0,0.0327219]
[1761236859870,0.63428369,109970.0,109960.0,0.15626019]
[1761236860066,0.63428369,109970.0,109960.0,0.04626019]
[1761236860267,0.63428369,109970.0,109960.0,0.14626019]
[1761236860768,0.63428369,109970.0,109960.0,0.04626019]
[1761236861780,0.63528369,109970.0,109960.0,0.04626019]
[1761236862874,0.63528369,109970.0,109960.0,0.00011019]
[1761236864278,0.64443709,109970.0,109960.0,0.00011019]
[1761236864776,0.66891039,109970.0,109960.0,0.01367069]
[1761236865470,1.26521215,109970.0,109960.0,0.01367069]
[1761236865670,1.10154146,109970.0,109960.0,0.01367069]
[1761236867279,1.06891039,109970.0,109960.0,0.01367069]
[1761236871081,1.06891039,109970.0,109960.0,0.03683069]
[1761236872778,1.06891039,109970.0,109960.0,0.05982069]
[1761236873083,0.471773,109970.0,109960.0,0.16371069]
[1761236873377,0.63544369,109970.0,109960.0,0.16371069]
[1761236873683,0.63544369,109970.0,109960.0,0.14982069]
[1761236874384,0.63544369,109970.0,109960.0,0.03683069]
[1761236874586,0.63544369,109970.0,109960.0,0.01367069]
[1761236875378,0.64458514,109970.0,109960.0,0.01367069]